bitfinex/quotes_ETHUSD_20250517
["timestamp","ask_amount","ask_price","bid_price","bid_amount"]
[1747481116116,4.03242531,2479.9,2479.7,7.716]
[1747481116293,4.03242531,2479.9,2479.8,0.22594854]
[1747481117226,4.03233209,2480.0,2479.8,0.22594854]
[1747481117421,8.96026718,2480.2,2479.8,0.22594854]
[1747481117740,4.03212162,2480.1,2479.8,0.61150651]
[1747481118021,12.99235662,2480.2,2479.9,0.22594854]
[1747481118022,12.99228243,2480.2,2479.9,0.22594854]
[1747481118419,4.03215825,2480.1,2479.9,0.22594854]
[1747481119017,12.99223889,2480.2,2479.8,1.92378267]
[1747481119219,12.99223889,2480.2,2479.9,0.7963]
[1747481119421,4.03214775,2480.1,2479.9,1.18185797]
[1747481119594,4.03219737,2480.1,2479.9,1.18185797]
[1747481120129,4.03225806,2480.0,2479.9,0.38555797]
[1747481120338,4.03225806,2480.0,2479.9,8.10055797]
[1747481120820,4.03225806,2480.0,2479.9,7.715]
[1747481121798,4.03267845,2479.8,2479.5,17.42]
[1747481122019,8.96026718,2480.2,2479.7,0.7963]
[1747481122209,4.0321849,2480.1,2479.7,0.7963]
[1747481122715,4.0321849,2480.1,2479.8,0.61091478]
[1747481123202,4.0321849,2480.1,2479.9,0.22572813]
[1747481123402,4.0321849,2480.1,2479.8,0.38518665]
[1747481124539,4.0321849,2480.1,2479.7,0.7963]
[1747481124841,4.03230508,2480.0,2479.7,2.62735102]
[1747481125139,4.03255556,2479.9,2479.7,0.7963]
[1747481125297,4.03255556,2479.9,2479.8,7.715]
[1747481127438,4.03216542,2480.1,2479.8,7.715]
[1747481127439,4.03235212,2480.0,2479.8,7.715]
[1747481128144,4.03242066,2479.9,2479.8,7.715]
[1747481129641,4.03233643,2480.0,2479.8,7.715]
[1747481130548,4.03216159,2480.1,2479.8,8.56613]
[1747481130844,4.03209548,2480.1,2479.8,0.85113]
[1747481131027,4.03229085,2480.0,2479.9,7.715]
[1747481133352,0.2622,2480.0,2479.5,17.42]
[1747481133549,4.03272875,2479.8,2479.6,7.94081034]
[1747481133858,4.03274589,2479.7,2479.6,0.22581034]
[1747481134055,4.29452222,2480.0,2479.6,7.94081034]
[1747481134232,4.0325022,2479.9,2479.6,7.94081034]
[1747481134434,4.03218465,2480.1,2479.8,0.7883]
[1747481134621,4.03218833,2480.1,2479.8,0.7883]
[1747481135459,4.03218833,2480.1,2479.9,0.22594964]
[1747481136051,4.03218833,2480.1,2479.8,0.7883]
[1747481136451,4.03242066,2479.9,2479.8,0.7883]
[1747481136652,4.03242066,2479.9,2479.8,7.94107522]
[1747481137033,4.03234902,2480.0,2479.8,7.94107522]
[1747481137233,4.03234902,2480.0,2479.9,0.22607522]
[1747481137672,4.03234902,2480.0,2479.9,0.61231563]
[1747481138000,8.96026718,2480.8,2480.1,0.7647]
[1747481138281,2.03161531,2481.2,2480.3,0.55]
[1747481138572,2.03161531,2481.2,2480.8,4.79557949]
[1747481138778,2.03161531,2481.2,2480.9,11.74575339]
[1747481138938,2.03161531,2481.2,2480.9,11.74571348]
[1747481139142,2.03161531,2481.2,2481.0,0.22607522]
[1747481139378,2.03161531,2481.2,2481.1,0.7647]
[1747481139536,2.03161531,2481.2,2481.1,4.79517035]
[1747481140479,2.03161531,2481.2,2481.1,5.40748598]
[1747481140654,2.03161531,2481.2,2481.1,13.40748598]
[1747481140856,2.03161531,2481.2,2481.1,16.88936041]
[1747481142575,2.03161531,2481.2,2481.1,13.04764128]
[1747481142975,2.03161531,2481.2,2481.1,5.33964128]
[1747481143181,4.02989497,2481.5,2481.1,9.56576685]
[1747481143749,4.02989497,2481.5,2481.1,9.33969163]
[1747481144263,4.02989497,2481.5,2481.2,0.38624041]
[1747481145404,4.03002083,2481.4,2481.2,0.38624041]
[1747481145896,4.03014548,2481.3,2481.2,0.38624041]
[1747481146080,4.03003714,2481.4,2481.2,7.707]
[1747481146263,4.0298902,2481.5,2481.2,7.707]
[1747481146582,4.03014548,2481.3,2481.2,7.707]
[1747481146779,0.2622,2481.6,2481.2,7.707]
[1747481147083,4.0302135,2481.3,2481.2,7.707]
[1747481147448,0.2622,2481.6,2480.9,1.06804403]
[1747481147666,4.03034063,2481.2,2481.0,7.707]
[1747481148486,4.03022999,2481.3,2481.0,8.55417]
[1747481148782,4.03006805,2481.4,2481.0,8.55417]
[1747481148981,4.02983665,2481.5,2481.0,12.58475097]
[1747481149199,4.03009887,2481.4,2481.0,8.55417]
[1747481150987,4.03009887,2481.4,2480.9,4.79548176]
[1747481150988,4.03039022,2481.2,2481.1,0.02597606]
[1747481151482,4.03039022,2481.2,2481.1,7.73197606]
[1747481152087,4.29259022,2481.2,2481.1,0.02597606]
[1747481152451,11.97359022,2481.2,2481.1,0.02597606]
[1747481153478,19.97359022,2481.2,2481.1,0.02597606]
[1747481154480,28.9338574,2481.2,2481.1,0.02597606]
[1747481156724,29.79067667,2481.2,2481.1,0.02597606]
[1747481156916,30.0006645,2481.2,2481.1,0.02597606]
[1747481158414,29.13984523,2481.2,2481.1,0.02597606]
[1747481158613,13.2528574,2481.2,2481.1,0.02597606]
[1747481158820,20.9338574,2481.2,2481.1,0.02597606]
[1747481159314,28.9338574,2481.2,2481.1,0.02597606]
[1747481160438,21.2528574,2481.2,2481.1,0.02597606]
[1747481160601,28.9348574,2481.2,2481.1,0.02597606]
[1747481163449,12.9906574,2481.2,2481.1,0.02597606]
[1747481163743,8.96026718,2481.2,2481.1,8.52507606]
[1747481164034,8.96026718,2481.2,2481.1,9.37758367]
[1747481164542,8.96026718,2481.2,2481.1,8.52507606]
[1747481167007,12.99057509,2481.2,2481.1,7.73297606]
[1747481167206,12.99057509,2481.2,2481.1,0.02597606]
[1747481168234,20.99057509,2481.2,2481.1,0.02597606]
[1747481170535,28.66557509,2481.2,2481.1,0.02597606]
[1747481172499,32.35667887,2481.2,2481.1,0.02597606]
[1747481173825,28.92477509,2481.2,2481.1,0.02597606]
[1747481174526,20.66257509,2481.2,2481.1,0.02597606]
[1747481174726,28.66257509,2481.2,2481.1,0.02597606]
[1747481175127,20.66457509,2481.2,2481.1,0.02597606]
[1747481175729,12.99057509,2481.2,2481.1,0.02597606]
[1747481179327,20.99057509,2481.2,2481.1,0.02597606]
[1747481179533,24.68167887,2481.2,2481.1,0.02597606]
[1747481180269,21.25277509,2481.2,2481.1,0.02597606]
[1747481180670,28.92577509,2481.2,2481.1,0.02597606]
[1747481182163,32.35467887,2481.2,2481.1,0.02597606]
[1747481185964,32.34267887,2481.2,2481.1,0.02597606]
[1747481194121,4.03144527,2480.5,2480.4,7.675]
[1747481194319,4.03144527,2480.5,2480.4,8.79758098]
[1747481194513,4.03144527,2480.5,2480.4,9.18329583]
[1747481194812,4.03144527,2480.5,2480.4,10.00299583]
[1747481198521,8.96026718,2481.2,2480.6,0.8197]
[1747481198816,4.03058848,2481.1,2480.7,0.8197]
[1747481199022,4.03072787,2481.0,2480.8,0.22597586]
[1747481199211,4.03072787,2481.0,2480.9,7.676]
[1747481199414,4.03072787,2481.0,2480.9,8.54816759]
[1747481199720,4.03072787,2481.0,2480.9,8.93388244]
[1747481199926,4.03072787,2481.0,2480.9,9.1598583]
[1747481200816,4.03072787,2481.0,2480.9,8.28769071]
[1747481200997,6.07997531,2481.0,2480.9,0.61169071]
[1747481201204,23.04024249,2481.0,2480.9,0.61169071]
[1747481201417,23.04024249,2481.0,2480.9,0.38571485]
[1747481202839,4.03095775,2480.8,2480.7,0.48075122]
[1747481202992,11.66995775,2480.8,2480.7,0.48075122]
[1747481204531,4.03128275,2480.6,2480.4,8.4457]
[1747481205111,4.03128275,2480.6,2480.5,0.2261854]
[1747481205630,4.03128275,2480.6,2480.5,0.61223368]
[1747481206327,4.03128275,2480.6,2480.5,0.38604828]
[1747481208235,12.99154993,2480.6,2480.5,0.38604828]
[1747481210236,20.99154993,2480.6,2480.5,0.38604828]
[1747481210464,24.42302783,2480.6,2480.5,0.38604828]
[1747481210600,24.68522783,2480.6,2480.5,0.38604828]
[1747481210807,24.89535525,2480.6,2480.5,0.38604828]
[1747481212557,4.03258327,2479.8,2479.7,0.7834]
[1747481213177,4.03290853,2479.6,2479.5,0.50803271]
[1747481213478,4.03290853,2479.6,2479.5,1.49911747]
[1747481214158,4.03290853,2479.6,2479.5,1.88482155]
[1747481214479,4.03290853,2479.6,2479.5,1.65883679]
[1747481214857,4.03290853,2479.6,2479.5,0.89373679]
[1747481215373,20.99317571,2479.6,2479.5,0.89373679]
[1747481216282,20.99317571,2479.6,2479.5,0.02728149]
[1747481216890,21.25537571,2479.6,2479.5,0.02728149]
[1747481217179,4.03388463,2479.0,2478.9,7.628]
[1747481217381,12.99415181,2479.0,2478.9,7.628]
[1747481220293,8.96026718,2479.0,2478.9,7.628]
[1747481220861,8.96026718,2479.0,2478.9,8.46731]
[1747481221192,8.96026718,2479.0,2478.9,9.23991]
[1747481223315,4.03443536,2478.7,2478.5,0.789]
[1747481223675,4.03453562,2478.6,2478.5,0.789]
[1747481223900,4.03445145,2478.7,2478.5,8.419]
[1747481224103,4.03427013,2478.8,2478.5,8.419]
[1747481224318,12.99416079,2479.0,2478.5,8.419]
[1747481224615,8.96026718,2479.0,2478.5,8.419]
[1747481225684,4.0345043,2478.7,2478.5,8.419]
[1747481226016,4.0348612,2478.4,2478.1,7.63]
[1747481226171,4.03518682,2478.2,2478.1,8.419]
[1747481226376,4.03518682,2478.2,2478.1,7.63]
[1747481227004,4.03518682,2478.2,2478.0,0.48075122]
[1747481227005,4.03534966,2478.1,2478.0,0.48075122]
[1747481227573,12.29754966,2478.1,2478.0,0.48075122]
[1747481228915,4.03593645,2477.8,2477.4,0.66666667]
[1747481229232,4.03632694,2477.5,2477.4,0.66666667]
[1747481229794,12.03632694,2477.5,2477.4,0.66666667]
[1747481235647,12.03632694,2477.5,2477.4,1.49736667]
[1747481235648,4.03632694,2477.5,2477.4,1.49736667]
[1747481236511,7.634,2477.7,2477.4,1.49736667]
[1747481236716,4.0361521,2477.7,2477.4,1.49736667]
[1747481236916,4.03617064,2477.6,2477.4,1.49736667]
[1747481237152,4.0359503,2477.8,2477.4,9.69478479]
[1747481237372,4.0359503,2477.8,2477.5,0.8307]
[1747481237519,4.03600596,2477.7,2477.5,0.8307]
[1747481238132,8.96026718,2478.0,2477.5,0.8307]
[1747481238333,12.99591919,2478.0,2477.5,0.7602]
[1747481238570,4.03569994,2477.9,2477.7,0.7602]
[1747481239393,12.99591919,2478.0,2477.7,0.7602]
[1747481239394,12.99583531,2478.0,2477.7,0.7602]
[1747481240045,12.99585076,2478.0,2477.7,0.7602]
[1747481240233,4.03568837,2477.9,2477.7,0.7602]
[1747481241342,4.03583824,2477.8,2477.7,8.4032]
[1747481242062,4.03632694,2477.5,2477.4,1.42686667]
[1747481243869,4.03632694,2477.5,2477.4,0.66666667]
[1747481244370,12.29852694,2477.5,2477.4,0.66666667]
[1747481248263,19.67832694,2477.5,2477.4,0.66666667]
[1747481253267,21.73312164,2477.5,2477.4,0.66666667]
[1747481253768,21.94320612,2477.5,2477.4,0.66666667]
[1747481255376,23.59259826,2477.5,2477.4,0.66666667]
[1747481255773,4.0374677,2476.8,2476.7,0.92106578]
[1747481257346,4.0374677,2476.8,2476.7,1.30684305]
[1747481257846,4.0374677,2476.8,2476.7,0.48964305]
[1747481258674,7.629,2476.8,2476.7,0.48964305]
[1747481258974,7.629,2476.8,2476.7,1.24604305]
[1747481260077,4.03719166,2477.0,2476.7,1.24604305]
[1747481260078,4.03743117,2476.9,2476.7,1.24604305]
[1747481260686,4.0374677,2476.8,2476.7,1.24604305]
[1747481261176,4.03739464,2476.9,2476.7,1.24604305]
[1747481261378,4.0374677,2476.8,2476.7,1.24604305]
[1747481261580,4.03737226,2476.9,2476.7,1.24604305]
[1747481261751,4.03723755,2477.0,2476.7,1.24604305]
[1747481262079,8.0,2477.2,2476.9,0.7564]
[1747481262080,4.03685614,2477.2,2476.9,0.7564]
[1747481263079,4.03685614,2477.2,2477.0,0.38577727]
[1747481263380,4.03697872,2477.1,2477.0,0.38577727]
[1747481270177,12.03697872,2477.1,2477.0,0.38577727]
[1747481271362,4.0374677,2476.8,2476.7,0.10386578]
[1747481271585,11.6614677,2476.8,2476.7,0.10386578]
[1747481273665,11.6614677,2476.8,2476.7,0.49059445]
[1747481274997,19.6614677,2476.8,2476.7,0.49059445]
[1747481275160,19.9236677,2476.8,2476.7,0.49059445]
[1747481275997,33.43393488,2476.8,2476.7,0.49059445]
[1747481276186,34.11539029,2476.8,2476.7,0.38672867]
[1747481276705,4.03811985,2476.4,2476.3,0.48075122]
[1747481277010,19.92531985,2476.4,2476.3,0.48075122]
[1747481277297,21.71934497,2476.4,2476.3,0.48075122]
[1747481278307,30.67961215,2476.4,2476.3,0.48075122]
[1747481278722,12.038446,2476.2,2476.1,0.6396646]
[1747481278904,8.96026718,2476.2,2475.7,1.44196667]
[1747481279104,20.6408007,2476.2,2475.9,0.7753]
[1747481279428,8.96026718,2476.2,2475.9,0.7753]
[1747481279627,12.99876154,2476.2,2475.9,8.94940589]
[1747481279932,4.0386246,2476.1,2475.9,8.94940589]
[1747481280086,12.99884827,2476.2,2475.9,8.94940589]
[1747481280429,8.96026718,2476.2,2476.0,0.3857008]
[1747481280575,12.99874094,2476.2,2476.0,0.3857008]
[1747481280774,8.96026718,2476.2,2476.0,0.3857008]
[1747481281014,12.99878753,2476.2,2476.0,0.3857008]
[1747481281920,4.0386091,2476.1,2476.0,8.0117008]
[1747481282600,8.96026718,2476.2,2476.1,4.0386091]
[1747481282800,8.96026718,2476.2,2476.1,5.42836995]
[1747481283114,8.96026718,2476.2,2476.1,1.38976085]
[1747481283286,7.661,2476.6,2476.1,1.38976085]
[1747481283287,4.03798546,2476.5,2476.1,1.38976085]
[1747481283488,8.96026718,2476.6,2476.4,4.03810417]
[1747481283694,8.96026718,2476.6,2476.5,1.18191042]
[1747481283909,8.96026718,2476.6,2476.5,0.7781]
[1747481284111,8.96026718,2476.6,2476.5,8.4041]
[1747481284283,8.96026718,2476.6,2476.5,8.7898008]
[1747481284685,8.96026718,2476.6,2476.5,9.01574271]
[1747481285505,8.96026718,2476.6,2476.5,8.7898008]
[1747481285707,8.96026718,2476.6,2476.5,10.07258895]
[1747481287384,8.96026718,2476.6,2476.5,10.2985335]
[1747481287718,8.96026718,2476.6,2476.5,2.6725335]
[1747481287902,8.96026718,2476.6,2476.5,9.01474535]
[1747481289227,8.96026718,2476.9,2476.5,13.05256816]
[1747481289426,8.96026718,2476.9,2476.7,0.7637]
[1747481290196,12.99760194,2476.9,2476.8,8.0107008]
[1747481291241,12.99760194,2476.9,2476.8,0.3857008]
[1747481292996,4.03795679,2476.5,2476.4,0.48075122]
[1747481294943,20.99822397,2476.5,2476.4,0.48075122]
[1747481295247,4.038446,2476.2,2476.1,0.38571243]
[1747481295550,20.67771318,2476.2,2476.1,0.38571243]
[1747481296551,4.03893533,2475.9,2475.8,0.48075122]
[1747481298246,4.03882568,2476.0,2475.8,0.38577924]
[1747481298445,4.03882568,2476.0,2475.8,0.61187153]
[1747481298622,20.67777541,2476.2,2475.8,0.61187153]
[1747481298623,4.03893533,2475.9,2475.8,0.61187153]
[1747481299051,4.03885188,2476.0,2475.8,0.61187153]
[1747481299244,4.03871175,2476.1,2475.8,0.61187153]
[1747481299438,4.03893533,2475.9,2475.8,0.61187153]
[1747481299650,4.03893533,2475.9,2475.8,0.38577924]
[1747481299854,4.03909847,2475.8,2475.7,0.66666667]
[1747481305785,4.03909847,2475.8,2475.7,0.66666667]
[1747481307283,12.99936565,2475.8,2475.7,0.66666667]
[1747481308780,4.03884671,2476.0,2475.7,1.45166667]
[1747481308948,4.03884671,2476.0,2475.7,2.76707885]
[1747481309149,4.03893659,2475.9,2475.8,0.38544927]
[1747481309345,8.96026718,2476.3,2475.8,0.38544927]
[1747481309550,4.03863302,2476.1,2475.9,0.785]
[1747481309969,8.96026718,2476.3,2475.9,0.785]
[1747481310151,4.03877221,2476.0,2475.9,0.785]
[1747481310587,4.03893533,2475.9,2475.8,0.38544927]
[1747481310967,4.03909847,2475.8,2475.7,9.11466667]
[1747481311155,4.03909847,2475.8,2475.7,9.34058715]
[1747481312296,4.03906857,2475.9,2475.7,9.34058715]
[1747481312654,4.03906857,2475.9,2475.8,0.38550326]
[1747481313089,4.03893533,2475.9,2475.8,0.38550326]
[1747481314094,4.03886664,2476.0,2475.8,0.38550326]
[1747481314317,12.99866317,2476.3,2475.9,0.8044]
[1747481314618,4.03846493,2476.2,2475.9,0.8044]
[1747481315813,4.03846493,2476.2,2476.0,0.38550326]
[1747481315983,4.0386091,2476.1,2476.0,0.38550326]
[1747481317209,12.99860795,2476.3,2476.0,0.38550326]
[1747481317384,8.96026718,2476.3,2476.1,0.8044]
[1747481317584,12.99859275,2476.3,2476.1,0.8044]
[1747481317784,12.99856938,2476.3,2476.1,0.8044]
[1747481318280,4.038446,2476.2,2476.1,0.8044]
[1747481318989,12.99861645,2476.3,2476.1,1.18990326]
[1747481319215,4.038446,2476.2,2476.1,1.18990326]
[1747481319693,12.99863876,2476.3,2476.1,1.18990326]
[1747481320923,8.96026718,2476.3,2476.1,1.71278345]
[1747481321128,6.11172901,2476.8,2476.2,11.70137307]
[1747481321129,8.96026718,2476.8,2476.2,11.70137307]
[1747481321327,12.99781467,2476.8,2476.4,0.8017]
[1747481321715,4.03779374,2476.6,2476.5,0.22621658]
[1747481321919,30.44319916,2476.6,2476.5,0.22621658]
[1747481322144,40.08790744,2476.6,2476.5,0.22621658]
[1747481322427,4.03828292,2476.3,2476.2,0.38550326]
[1747481322627,7.27129611,2476.3,2476.2,0.38550326]
[1747481322999,4.03877221,2476.0,2475.9,0.48075122]
[1747481323207,12.03397221,2476.0,2475.9,0.48075122]
[1747481324601,4.03956894,2475.6,2475.4,0.38550326]
[1747481324908,4.03951959,2475.6,2475.4,0.38550326]
[1747481325104,4.03951959,2475.6,2475.4,1.31889871]
[1747481325318,7.9952,2476.0,2475.4,1.31889871]
[1747481325510,12.03401249,2476.0,2475.4,1.31889871]
[1747481325711,4.03949054,2475.6,2475.4,1.31889871]
[1747481326117,4.03949054,2475.6,2475.5,0.38550326]
[1747481328639,12.99975772,2475.6,2475.5,0.38550326]
[1747481329449,4.03958796,2475.5,2475.4,0.38550326]
[1747481329609,11.75658796,2475.5,2475.4,0.38550326]
[1747481331015,4.03958796,2475.5,2475.4,0.38550326]
[1747481331243,11.75158796,2475.5,2475.4,0.38550326]
[1747481332442,4.03958796,2475.5,2475.4,0.38550326]
[1747481332938,8.96026718,2475.6,2475.5,0.8333]
[1747481333241,8.96026718,2475.6,2475.5,1.35916446]
[1747481333540,8.96026718,2475.6,2475.5,0.8333]
[1747481334125,12.85178796,2475.5,2475.4,0.38550326]
[1747481334312,12.04007756,2475.2,2475.1,0.48075122]
[1747481334660,4.30227756,2475.2,2475.1,0.48075122]
[1747481334828,4.30227756,2475.2,2474.6,0.8333]
[1747481334829,4.04040404,2475.0,2474.7,0.48075122]
[1747481335024,4.04073056,2474.8,2474.7,0.48075122]
[1747481336817,4.04064551,2474.9,2474.7,0.48075122]
[1747481337171,4.04073056,2474.8,2474.7,0.48075122]
[1747481337316,4.04064551,2474.9,2474.7,0.48075122]
[1747481337317,4.04066513,2474.9,2474.7,0.48075122]
[1747481337650,4.04073056,2474.8,2474.7,0.48075122]
[1747481338551,4.04073056,2474.8,2474.6,8.5013]
[1747481340158,0.2622,2475.2,2474.6,9.35143]
[1747481340452,13.00060885,2475.1,2474.6,13.39247888]
[1747481340644,13.00051279,2475.1,2474.6,13.39240372]
[1747481343070,8.96026718,2475.1,2474.8,4.04072505]
[1747481343272,4.03968477,2475.5,2475.0,4.04040404]
[1747481343575,8.96026718,2475.6,2475.2,4.85099005]
[1747481344174,8.96026718,2475.6,2475.3,4.03981341]
[1747481344690,8.96026718,2476.2,2475.3,0.55]
[1747481344976,8.96026718,2476.2,2475.8,4.03908392]
[1747481345148,8.96026718,2476.2,2475.4,1.25900685]
[1747481345149,2.03161531,2476.4,2476.0,0.811]
[1747481345351,4.0386091,2476.1,2476.0,0.811]
[1747481345754,4.0386091,2476.1,2476.0,7.668]
[1747481346476,4.03882223,2476.0,2475.9,7.668]
[1747481346677,4.03868812,2476.1,2475.9,7.668]
[1747481346980,4.03877221,2476.0,2475.9,7.668]
[1747481347976,4.03868175,2476.1,2475.7,0.811]
[1747481348287,4.03909847,2475.8,2475.7,3.04074162]
[1747481348495,4.03909847,2475.8,2475.7,7.667]
[1747481351296,4.03880875,2476.0,2475.7,7.667]
[1747481351718,4.03880875,2476.0,2475.2,1.29275122]
[1747481351719,0.2622,2476.0,2475.2,1.29275122]
[1747481351867,4.03958796,2475.5,2475.4,7.667]
[1747481352213,4.03951608,2475.6,2475.4,7.85]
[1747481352799,4.03958796,2475.5,2475.3,7.85]
[1747481353015,4.03951697,2475.6,2475.3,7.85]
[1747481353219,4.03934006,2475.7,2475.3,7.85]
[1747481353692,8.96026718,2475.9,2475.3,9.57230547]
[1747481353888,20.84331484,2475.9,2475.4,4.0396806]
[1747481354810,16.80426718,2475.9,2475.4,4.0396806]
[1747481355012,20.84331929,2475.9,2475.4,4.0396806]
[1747481355317,8.96026718,2475.9,2475.7,0.8299]
[1747481355491,8.96026718,2475.9,2475.8,11.88909847]
[1747481355892,8.96026718,2475.9,2475.8,12.27451432]
[1747481359412,8.96026718,2475.9,2475.8,0.38541585]
[1747481359589,8.96026718,2475.9,2475.8,8.23441585]
[1747481359782,8.96026718,2475.9,2475.8,9.59285281]
[1747481359982,8.96026718,2475.9,2475.8,13.63195128]
[1747481361411,4.038295,2476.3,2475.8,13.63195128]
[1747481362187,4.038295,2476.3,2475.9,4.03892015]
[1747481362388,4.038295,2476.3,2475.8,13.6318452]
[1747481362605,4.038295,2476.3,2475.9,1.8500957]
[1747481362811,4.03840634,2476.3,2475.9,1.8500957]
[1747481363014,4.03840634,2476.3,2476.0,0.38541585]
[1747481363329,4.03816703,2476.4,2476.0,0.38541585]
[1747481363616,4.03816703,2476.4,2476.0,4.42416562]
[1747481363791,4.03829909,2476.3,2476.0,0.38541585]
[1747481364291,4.0386091,2476.1,2476.0,0.38541585]
[1747481364491,4.03848236,2476.2,2476.0,0.38541585]
[1747481364690,16.78126718,2476.5,2475.8,7.849]
[1747481364993,4.03902442,2475.9,2475.6,0.48075122]
[1747481365317,4.03886808,2476.0,2475.6,0.48075122]
[1747481365520,4.30085729,2476.1,2475.6,0.48075122]
[1747481365699,4.03885307,2476.0,2475.6,0.48075122]
[1747481366121,4.03877561,2476.0,2475.6,0.48075122]
[1747481366304,4.03893533,2475.9,2475.6,0.86588547]
[1747481366809,4.03885102,2476.0,2475.6,0.86588547]
[1747481367116,4.0386477,2476.1,2475.6,4.90518127]
[1747481367321,4.03880161,2476.0,2475.6,4.90518127]
[1747481367616,4.03909781,2475.9,2475.6,0.86588547]
[1747481368201,4.03909781,2475.9,2475.7,0.38513425]
[1747481369322,4.03886761,2476.0,2475.7,0.38513425]
[1747481369723,4.03886761,2476.0,2475.8,0.38513425]
[1747481371418,4.03867615,2476.1,2475.8,0.38513425]
[1747481371611,4.03867543,2476.1,2475.9,0.38513425]
[1747481373225,4.03867543,2476.1,2476.0,0.38513425]
[1747481376234,7.812,2476.3,2476.0,0.38513425]
[1747481376535,11.85035965,2476.3,2476.0,0.38513425]
[1747481377235,4.0385993,2476.2,2476.0,0.38513425]
[1747481377632,11.85033713,2476.3,2476.0,0.38513425]
[1747481377805,11.85033713,2476.3,2476.1,0.38513425]
[1747481378445,4.0385943,2476.2,2476.1,0.38513425]
[1747481380664,4.03836898,2476.3,2476.1,0.38513425]
[1747481381743,4.03836898,2476.3,2476.2,0.38513425]
[1747481383151,4.03818616,2476.4,2476.2,0.38513425]
[1747481383538,4.03828292,2476.3,2476.2,0.38513425]
[1747481386976,4.0382063,2476.4,2476.2,0.38513425]
[1747481387177,8.96026718,2476.5,2476.2,0.38513425]
[1747481387474,8.96026718,2476.5,2476.3,0.7951]
[1747481387675,12.99823427,2476.5,2476.3,0.7951]
[1747481388476,4.03811985,2476.4,2476.3,0.7951]
[1747481389670,4.03811985,2476.4,2476.3,7.773]
[1747481390075,4.03811985,2476.4,2476.3,8.15980299]
[1747481390471,4.03811985,2476.4,2476.3,0.38680299]
[1747481390682,4.03811985,2476.4,2476.3,8.15980299]
[1747481391976,4.03811985,2476.4,2476.3,0.38680299]
[1747481400205,8.96026718,2476.5,2476.3,0.38680299]
[1747481400496,8.96026718,2476.5,2476.3,1.18550299]
[1747481400700,8.96026718,2476.5,2476.3,1.08550299]
[1747481401611,12.99823077,2476.5,2476.3,1.08550299]
[1747481402182,12.99823077,2476.5,2476.3,1.27945122]
[1747481404928,8.96026718,2476.5,2476.3,1.27945122]
[1747481405090,4.03811985,2476.4,2476.3,0.48075122]
[1747481406026,13.26051556,2476.5,2476.3,0.48075122]
[1747481406321,4.03811985,2476.4,2476.3,0.48075122]
[1747481406526,11.74311985,2476.4,2476.3,0.48075122]
[1747481408967,12.99831328,2476.5,2476.0,0.48075122]
[1747481409145,4.03818626,2476.4,2476.1,0.829]
[1747481410338,4.03832219,2476.3,2476.1,0.829]
[1747481411361,4.03820283,2476.4,2476.1,0.829]
[1747481411718,12.99829182,2476.5,2476.2,0.48075122]
[1747481411719,4.03828292,2476.3,2476.2,0.48075122]
[1747481412174,4.03828292,2476.3,2476.2,8.18075122]
[1747481413152,4.0382071,2476.4,2476.2,8.56784821]
[1747481413851,4.03811985,2476.4,2476.2,8.56784821]
[1747481414047,12.99822413,2476.5,2476.2,8.56784821]
[1747481414048,12.99831987,2476.5,2476.2,8.56784821]
[1747481414254,12.998225,2476.5,2476.2,8.56784821]
[1747481414457,12.998225,2476.5,2476.2,10.26788406]
[1747481414660,12.998225,2476.5,2476.3,0.38709699]
[1747481415842,12.998225,2476.5,2476.4,0.38709699]
[1747481416880,8.96026718,2477.2,2476.6,4.03768818]
[1747481417085,8.96026718,2477.2,2476.7,8.10376882]
[1747481417240,4.03676058,2477.3,2476.7,8.10376882]
[1747481417445,4.03689035,2477.2,2476.7,12.14139198]
[1747481417640,4.03700141,2477.1,2476.7,8.10376882]
[1747481418281,4.03700141,2477.1,2476.6,4.86672178]
[1747481418282,4.03725356,2477.0,2476.8,1.09443721]
[1747481418455,4.03730469,2476.9,2476.8,8.79443721]
[1747481418654,2.05602678,2477.4,2476.8,8.79443721]
[1747481418984,4.03697195,2477.2,2476.8,8.79443721]
[1747481419181,4.03691419,2477.2,2476.9,0.226589]
[1747481419482,4.03691419,2477.2,2477.0,0.7872]
[1747481419986,4.03681575,2477.2,2477.1,0.38709699]
[1747481421199,4.29901575,2477.2,2477.1,0.38709699]
[1747481421501,4.03681575,2477.2,2477.1,0.38709699]
[1747481421971,4.03681575,2477.2,2477.1,0.61331029]
[1747481422754,4.03674534,2477.3,2477.1,0.61331029]
[1747481422991,4.03674534,2477.3,2477.1,0.38709699]
[1747481423174,2.03161531,2477.5,2477.1,1.27442669]
[1747481423369,4.03596164,2477.8,2477.3,4.03652515]
[1747481423563,4.03596164,2477.8,2477.3,4.03654954]
[1747481423768,4.03596164,2477.8,2477.4,0.74897891]
[1747481424102,4.03569167,2477.9,2477.5,7.699]
[1747481424398,4.03590908,2477.8,2477.5,7.699]
[1747481424905,7.9842,2478.1,2477.2,1.15349699]
[1747481424906,4.03616402,2477.6,2477.2,1.15349699]
[1747481425107,4.03648986,2477.4,2477.3,7.699]
[1747481425315,4.03648986,2477.4,2477.3,0.22578871]
[1747481425607,4.03648986,2477.4,2477.3,0.70653993]
[1747481425961,4.29855818,2477.5,2477.3,0.48075122]
[1747481425962,4.03641882,2477.5,2477.3,0.48075122]
[1747481426194,11.76223405,2477.6,2477.3,0.48075122]
[1747481426357,4.03648986,2477.4,2477.3,0.48075122]
[1747481426553,4.03635056,2477.5,2477.3,0.48075122]
[1747481427493,4.03648986,2477.4,2477.3,0.48075122]
[1747481428713,4.03648986,2477.4,2477.2,0.38528417]
[1747481428865,4.03648986,2477.4,2477.2,1.6612832]
[1747481429896,4.29802537,2477.9,2477.3,1.17038417]
[1747481430099,4.0361211,2477.7,2477.3,1.17038417]
[1747481430880,4.03618568,2477.6,2477.3,1.17038417]
[1747481431567,4.03618568,2477.6,2477.4,0.38528417]
[1747481432715,4.03605132,2477.7,2477.4,0.38528417]
[1747481432866,4.03577915,2477.9,2477.4,0.62992249]
[1747481433072,4.03592538,2477.8,2477.4,0.62992249]
[1747481433481,11.74557951,2478.0,2477.4,4.66640149]
[1747481433731,4.03576048,2477.9,2477.6,0.7851]
[1747481433904,4.03576048,2477.9,2477.6,8.4821]
[1747481434695,4.03592682,2477.8,2477.6,8.4821]
[1747481434881,4.03600113,2477.7,2477.6,7.697]
[1747481435110,4.03600113,2477.7,2477.6,8.66271726]
[1747481437940,4.03600113,2477.7,2477.5,0.54515015]
[1747481438096,4.03620972,2477.6,2477.4,7.696]
[1747481439237,4.03632694,2477.5,2477.4,7.696]
[1747481439593,4.03600113,2477.7,2477.4,7.696]
[1747481439812,4.03600113,2477.7,2477.5,1.15452879]
[1747481440097,4.03616402,2477.6,2477.5,1.15452879]
[1747481440945,8.96026718,2477.8,2477.5,1.15452879]
[1747481441147,8.96026718,2477.8,2477.6,0.7851]
[1747481441348,12.99618201,2477.8,2477.6,1.17002879]